fUST/lending_fUST_20240317
["ID","MTS","AMOUNT","RATE_DAILY","PERIOD"]
[319223886,1710605064085,10000.0,0.0001395,2]
[319223938,1710605432548,-381.8787319,0.0001745,2]
[319223939,1710605432559,-280.79703052,0.0001745,2]
[319223941,1710605432567,-852.0988489,0.00017451,2]
[319223943,1710605432578,-2041.82538868,0.000182,2]
[319223944,1710605432591,-11335.25025197,0.000182,2]
[319223945,1710605432600,-202.51838,0.00018248,2]
[319223947,1710605432609,-220.118406,0.00018248,2]
[319223949,1710605432618,-294.08370709,0.00018255,2]
[319223951,1710605432627,-176.75413127,0.0001843,2]
[319223953,1710605432637,-176.75413125,0.00018463,2]
[319223955,1710605432646,-176.75413125,0.00018497,2]
[319223957,1710605432656,-1049.54139807,0.00018529,2]
[319223959,1710605432665,-1049.54139807,0.00018529,2]
[319223961,1710605432674,-1049.54139807,0.0001853,2]
[319223963,1710605432684,-1049.54139807,0.0001853,2]
[319223965,1710605432694,-1049.54139807,0.0001853,2]
[319223967,1710605432704,-620.44108472,0.0001853,2]
[319223968,1710605432712,-176.75413125,0.0001853,2]
[319223970,1710605432722,-8853.35297568,0.0001853,2]
[319223972,1710605432732,-1000.0,0.0001853,2]
[319223974,1710605432742,-217.25246456,0.00018628,2]
[319223977,1710605432752,-351.03076135,0.00018628,2]
[319223979,1710605432761,-169.28728127,0.00018628,2]
[319223980,1710605432771,-247.5685636,0.00018628,2]
[319223983,1710605432787,-311.42954669,0.00018628,2]
[319223986,1710605432802,-265.35005756,0.00018628,2]
[319223988,1710605432811,-292.03204163,0.00018628,2]
[319223989,1710605432820,-6214.57284901,0.00018628,2]
[319223990,1710605432830,-372.52735655,0.00018628,2]
[319223991,1710605432840,-305.29300169,0.00018628,2]
[319223992,1710605432850,-9413.69034665,0.00018628,2]
[319223993,1710605432859,-2509.32588346,0.00018628,2]
[319223994,1710605432869,-155.686923,0.00018628,2]
[319223995,1710605432878,-15712.41904849,0.00018628,5]
[319223996,1710605432887,-1271.39057829,0.00018629,2]
[319223997,1710605432897,-500.0,0.00018629,2]
[319223998,1710605432907,-500.0,0.00018629,2]
[319223999,1710605432916,-500.0,0.00018629,2]
[319224000,1710605432925,-500.0,0.00018629,2]
[319224001,1710605432935,-500.0,0.00018629,2]
[319224002,1710605432944,-509.08617048,0.00018629,2]
[319224003,1710605432953,-1096.72,0.00018629,2]
[319224004,1710605432962,-1096.72,0.00018629,2]
[319224005,1710605432972,-1096.72,0.00018629,2]
[319224006,1710605432982,-1096.72,0.00018629,2]
[319224007,1710605432991,-1096.72,0.00018629,2]
[319224008,1710605433001,-1096.72,0.00018629,2]
[319224009,1710605433011,-1096.72,0.00018629,2]
[319224010,1710605433021,-1096.72,0.00018629,2]
[319224011,1710605433030,-1096.72,0.00018629,2]
[319224012,1710605433041,-1096.72,0.00018629,2]
[319224014,1710605433051,-1096.72,0.00018629,2]
[319224016,1710605433061,-1096.72,0.00018629,2]
[319224018,1710605433070,-1096.72,0.00018629,2]
[319224020,1710605433079,-918.95804934,0.00018629,2]
[319224023,1710605433093,-177.76195066,0.00018629,2]
[319224025,1710605433102,-500.0,0.00018629,2]
[319224027,1710605433112,-263.38918492,0.00018629,2]
[319224628,1710605438746,-833.33081508,0.00018629,2]
[319224630,1710605438757,-336.24669674,0.00018629,2]
[319224833,1710605440667,-163.75330326,0.00018629,2]
[319224835,1710605440677,-1096.72,0.00018629,2]
[319224837,1710605440687,-512.5233244,0.00018629,2]
[319224839,1710605440696,-692.74845399,0.00018629,2]
[319224842,1710605440708,-403.97154601,0.00018629,2]
[319224844,1710605440718,-1096.72,0.00018629,2]
[319224846,1710605440727,-1096.72,0.00018629,2]
[319224848,1710605440736,-1096.72,0.00018629,2]
[319224850,1710605440745,-1096.72,0.00018629,2]
[319224851,1710605440754,-1096.72,0.00018629,2]
[319224853,1710605440764,-1096.72,0.00018629,2]
[319224855,1710605440773,-1096.87068412,0.00018629,2]
[319224857,1710605440782,-1449.88,0.00018629,2]
[319224859,1710605440792,-1000.0,0.00018629,3]
[319224861,1710605440801,-1389.47,0.00018629,2]
[319224863,1710605440810,-1389.47,0.00018629,2]
[319224865,1710605440819,-1389.47,0.00018629,2]
[319224867,1710605440829,-1389.47,0.00018629,2]
[319224869,1710605440838,-1389.47,0.00018629,2]
[319224871,1710605440848,-1389.47,0.00018629,2]
[319224873,1710605440857,-1389.47,0.00018629,2]
[319224875,1710605440866,-1389.47,0.00018629,2]
[319224877,1710605440875,-1389.47,0.00018629,2]
[319224879,1710605440884,-1389.47,0.00018629,2]
[319224880,1710605440893,-1389.47,0.00018629,2]
[319224883,1710605440903,-1389.47,0.00018629,2]
[319224884,1710605440913,-1389.47,0.00018629,2]
[319224887,1710605440922,-1389.47,0.00018629,2]
[319224888,1710605440931,-1389.47,0.00018629,2]
[319224890,1710605440940,-1389.47,0.00018629,2]
[319224892,1710605440949,-1389.47,0.00018629,2]
[319224894,1710605440958,-1389.47,0.00018629,2]
[319224896,1710605440967,-1389.47,0.00018629,2]
[319224898,1710605440976,-1389.47,0.00018629,2]
[319224900,1710605440985,-1389.47,0.00018629,2]
[319224902,1710605440994,-1389.47,0.00018629,2]
[319224904,1710605441003,-1389.47,0.00018629,2]
[319224906,1710605441012,-1389.51480143,0.00018629,2]
[319224908,1710605441021,-320.91481099,0.00018629,2]
[319224910,1710605441030,-500.0,0.00018629,2]
[319224912,1710605441041,-206.36488346,0.00018629,2]
[319224914,1710605441050,-500.0,0.00018629,2]
[319224916,1710605441059,-384.40806267,0.00018629,2]
[319225358,1710605447127,-393.13012416,0.00018628,2]
[319225359,1710605447136,-115.59193733,0.00018629,2]
[319225360,1710605447145,-500.0,0.00018629,2]
[319225361,1710605447154,-500.0,0.00018629,2]
[319225362,1710605447163,-500.0,0.00018629,2]
[319225363,1710605447172,-500.0,0.00018629,2]
[319225365,1710605447181,-458.82467617,0.00018629,2]
[319225367,1710605447191,-500.0,0.00018629,2]
[319225369,1710605447200,-416.35116678,0.00018629,2]
[319225372,1710605447210,-592.19301227,0.00018629,2]
[319225375,1710605447219,-172.88756387,0.00018629,2]
[319225377,1710605447227,-22991.54305943,0.0001863,2]
[319225381,1710605447240,-812.04125896,0.0001863,2]
[319225419,1710606631751,-171.17129564,0.00018443,2]
[319225420,1710606631762,-6287.73060576,0.0001853,2]
[319225421,1710606631772,-414.36699082,0.00018628,2]
[319225422,1710606631781,-1130.93313163,0.00018628,2]
[319225423,1710606631791,-282.59925093,0.00018628,2]
[319225424,1710606631801,-363.84296707,0.00018629,2]
[319225425,1710606631811,-267403.30291829,0.0001863,2]
[319228474,1710606864790,2255.13,0.00025,120]
[319228724,1710607838040,-155.04961588,0.00016887,2]
[319228726,1710607838050,-589.37066412,0.00016888,2]
[319228732,1710607838095,-50.05810734,0.00016888,2]
[319228734,1710607838104,-794.47838734,0.00016889,2]
[319228736,1710607838113,-192.68084235,0.00017061,2]
[319228738,1710607838123,-192.68084233,0.00017062,2]
[319228740,1710607838132,-192.68084233,0.00017062,2]
[319228742,1710607838141,-5000.92162035,0.00018,10]
[319228744,1710607838152,-71.80971424,0.00018,10]
[319228746,1710607838161,-200.323371,0.00018248,2]
[319228748,1710607838172,-77.8048835,0.00018255,2]
[319228750,1710607838183,-675.41725776,0.00018255,2]
[319228752,1710607838194,-289.52126609,0.00018255,2]
[319228754,1710607838203,-171.17129564,0.00018443,2]
[319228756,1710607838212,-201.1557499,0.000185,2]
[319228758,1710607838221,-201.1557499,0.000185,2]
[319228760,1710607838232,-306.8604924,0.000185,2]
[319228762,1710607838241,-399.3111723,0.000185,2]
[319228764,1710607838252,-223.41628586,0.0001853,2]
[319228767,1710607838264,-26254.80258877,0.0001853,2]
[319228769,1710607838276,-201.1557499,0.000186,2]
[319228771,1710607838287,-402.2316899,0.000186,2]
[319228773,1710607838299,-201.1557499,0.000186,2]
[319228775,1710607838310,-201.1557499,0.000186,2]
[319228778,1710607838321,-201.1557499,0.000186,2]
[319228780,1710607838332,-475.2680828,0.000186,2]
[319228782,1710607838344,-153.0,0.000186,2]
[319228784,1710607838354,-199.4294531,0.000186,2]
[319228786,1710607838364,-153.0,0.000186,2]
[319228788,1710607838373,-153.0,0.000186,2]
[319228791,1710607838383,-201.1557499,0.000186,2]
[319228793,1710607838395,-153.0,0.000186,2]
[319228795,1710607838406,-153.0,0.000186,2]
[319228797,1710607838416,-201.1557499,0.000186,2]
[319228799,1710607838427,-153.0,0.000186,2]
[319228801,1710607838438,-153.0,0.000186,2]
[319228804,1710607838449,-153.0,0.000186,2]
[319228806,1710607838459,-153.0,0.000186,2]
[319228808,1710607838470,-153.0,0.000186,2]
[319228810,1710607838480,-201.1557499,0.000186,2]
[319228812,1710607838490,-153.0,0.000186,2]
[319228814,1710607838500,-201.1557499,0.000186,2]
[319228816,1710607838511,-153.0,0.000186,2]
[319228818,1710607838522,-201.1557499,0.000186,2]
[319228820,1710607838532,-153.0,0.000186,2]
[319228823,1710607838542,-201.1557499,0.000186,2]
[319228825,1710607838553,-1645.23149251,0.00018628,2]
[319228827,1710607838563,-291.29857822,0.00018628,2]
[319228829,1710607838572,-201.87222095,0.00018628,2]
[319228831,1710607838583,-187.37817515,0.00018628,2]
[319228833,1710607838592,-155.53526883,0.00018628,2]
[319228835,1710607838602,-204.89534336,0.00018628,2]
[319228837,1710607838613,-179.69289793,0.00018628,2]
[319228840,1710607838624,-3337.91650113,0.00018628,2]
[319228842,1710607838635,-1666.79051377,0.00018628,2]
[319228844,1710607838645,-180.66587885,0.00018628,2]
[319228846,1710607838656,-416.09170837,0.00018628,2]
[319228848,1710607838666,-301.76336706,0.00018629,2]
[319228850,1710607838677,-269.8498039,0.00018629,2]
[319228854,1710607838702,-500.0,0.00018629,2]
[319228856,1710607838714,-296.85540788,0.00018629,2]
[319228858,1710607838725,-18950.20304685,0.0001863,2]
[319228860,1710607838744,-7037.238242,0.0001863,2]
[319228997,1710607840071,-665.0,0.0001863,2]
[319229004,1710607840128,-320.03547801,0.0001863,2]
[319229290,1710607843075,-155.04961588,0.00016718,2]
[319229292,1710607843086,-22417.65332999,0.0001863,2]
[319229457,1710609032149,-155.03255684,0.00017228,2]
[319229458,1710609032159,-1081.84484016,0.00017229,2]
[319229459,1710609032169,-7371.3396322,0.00017236,2]
[319229460,1710609032178,-300.0,0.0001769,2]
[319229461,1710609032187,-3814.0,0.00017691,2]
[319229463,1710609032197,-1475.78282209,0.00017692,2]
[319229465,1710609032207,-155.01085076,0.00017694,2]
[319229467,1710609032216,-171.17129564,0.00018443,2]
[319229469,1710609032226,-1483.43269444,0.0001853,2]
[319229471,1710609032235,-86683.89294788,0.0001853,2]
[319229473,1710609032244,-500.0,0.00018599,2]
[319229475,1710609032253,-582.0,0.000186,2]
[319229476,1710609032262,-441.8537,0.000186,2]
[319229478,1710609032271,-500.0,0.00018627,2]
[319229480,1710609032280,-500.0,0.00018627,2]
[319229482,1710609032289,-500.0,0.00018627,2]
[319229484,1710609032298,-500.0,0.00018627,2]
[319229486,1710609032307,-502.911632,0.00018627,2]
[319229488,1710609032316,-500.0,0.00018627,2]
[319229490,1710609032325,-500.0,0.00018627,2]
[319229491,1710609032334,-500.0,0.00018627,2]
[319229493,1710609032343,-500.34137207,0.00018627,2]
[319229495,1710609032355,-501.6448559,0.00018627,2]
[319229496,1710609032366,-500.0,0.00018627,2]
[319229497,1710609032375,-446.73264672,0.00018627,2]
[319229498,1710609032385,-500.0,0.00018627,2]
[319229499,1710609032395,-500.0,0.00018627,2]
[319229500,1710609032404,-500.0,0.00018627,2]
[319229501,1710609032416,-500.0,0.00018627,2]
[319229502,1710609032426,-370.80290693,0.00018627,2]
[319229503,1710609032435,-260.55157754,0.00018628,2]
[319229504,1710609032445,-184.71260849,0.00018628,2]
[319229505,1710609032454,-381.78579349,0.00018628,2]
[319229506,1710609032463,-155.16292107,0.00018628,2]
[319229507,1710609032474,-45693.7557041,0.00018628,2]
[319229508,1710609032484,-15265.62274168,0.00018628,2]
[319229509,1710609032494,-1591.33542413,0.00018628,2]
[319229510,1710609032503,-188.50655472,0.00018628,2]
[319229511,1710609032513,-204.89534336,0.00018628,2]
[319229512,1710609032522,-3222.73716798,0.00018628,2]
[319229513,1710609032532,-1382.95621485,0.00018628,2]
[319229514,1710609032541,-155.01085076,0.00018628,2]
[319229515,1710609032551,-1174.98584002,0.00018628,2]
[319229516,1710609032560,-321.12270848,0.00018628,2]
[319229517,1710609032569,-155.04961588,0.00018629,2]
[319229518,1710609032579,-2599.63259754,0.00018629,2]
[319229519,1710609032589,-551.16066515,0.00018629,2]
[319229520,1710609032600,-455.19155185,0.00018629,2]
[319229521,1710609032610,-211.33271722,0.00018629,2]
[319229522,1710609032619,-500.0,0.00018629,2]
[319229523,1710609032628,-500.0,0.00018629,2]
[319229524,1710609032637,-500.0,0.00018629,2]
[319229525,1710609032647,-552.39,0.00018629,2]
[319229526,1710609032657,-552.39,0.00018629,2]
[319229527,1710609032666,-552.39,0.00018629,2]
[319229528,1710609032675,-552.39,0.00018629,2]
[319229529,1710609032686,-552.39,0.00018629,2]
[319229530,1710609032695,-552.39,0.00018629,2]
[319229531,1710609032706,-552.39,0.00018629,2]
[319229532,1710609032715,-552.39,0.00018629,2]
[319229533,1710609032724,-552.39,0.00018629,2]
[319229534,1710609032734,-552.39,0.00018629,2]
[319229535,1710609032744,-552.39,0.00018629,2]
[319229536,1710609032753,-552.39,0.00018629,2]
[319229537,1710609032762,-552.39,0.00018629,2]
[319229538,1710609032771,-552.39,0.00018629,2]
[319229539,1710609032780,-552.39,0.00018629,2]
[319229540,1710609032789,-552.39,0.00018629,2]
[319229541,1710609032798,-552.39,0.00018629,2]
[319229542,1710609032808,-552.39,0.00018629,2]
[319229543,1710609032818,-552.39,0.00018629,2]
[319229544,1710609032827,-552.39,0.00018629,2]
[319229545,1710609032837,-552.39,0.00018629,2]
[319229546,1710609032846,-552.39,0.00018629,2]
[319229547,1710609032857,-552.39,0.00018629,2]
[319229548,1710609032866,-552.391845,0.00018629,2]
[319229549,1710609032875,-500.0,0.00018629,2]
[319229550,1710609032884,-500.0,0.00018629,2]
[319229551,1710609032894,-500.0,0.00018629,2]
[319229552,1710609032903,-442.88019089,0.00018629,2]
[319229553,1710609032912,-494.91909945,0.00018629,2]
[319229554,1710609032922,-500.0,0.00018629,2]
[319229555,1710609032932,-500.0,0.00018629,2]
[319229556,1710609032942,-500.0,0.00018629,2]
[319229557,1710609032953,-500.0,0.00018629,2]
[319229558,1710609032964,-361.15332449,0.00018629,2]
[319229559,1710609032973,-500.0,0.00018629,2]
[319229560,1710609032984,-500.0,0.00018629,2]
[319229561,1710609032994,-500.0,0.00018629,2]
[319229562,1710609033004,-381.75834267,0.00018629,2]
[319229563,1710609033014,-500.0,0.00018629,2]
[319229564,1710609033023,-500.0,0.00018629,2]
[319229565,1710609033033,-500.0,0.00018629,2]
[319229566,1710609033041,-500.0,0.00018629,2]
[319229567,1710609033050,-500.0,0.00018629,2]
[319229568,1710609033059,-500.0,0.00018629,2]
[319229569,1710609033068,-178.08956204,0.00018629,2]
[319229570,1710609033079,-500.0,0.00018629,2]
[319229571,1710609033090,-500.0,0.00018629,2]
[319229572,1710609033100,-369.7487832,0.00018629,2]
[319229573,1710609033109,-500.0,0.00018629,2]
[319229574,1710609033118,-500.0,0.00018629,2]
[319229575,1710609033126,-500.0,0.00018629,2]
[319229576,1710609033138,-500.0,0.00018629,2]
[319229577,1710609033147,-500.0,0.00018629,2]
[319229578,1710609033156,-500.0,0.00018629,2]
[319229579,1710609033165,-500.0,0.00018629,2]
[319229580,1710609033175,-500.0,0.00018629,2]
[319229581,1710609033184,-500.0,0.00018629,2]
[319229582,1710609033194,-500.0,0.00018629,2]
[319229583,1710609033203,-500.0,0.00018629,2]
[319229584,1710609033214,-528.49904109,0.00018629,2]
[319229585,1710609033223,-593.73479584,0.00018629,2]
[319229586,1710609033232,-11153.0093237,0.0001863,2]
[319229666,1710609038317,-336.97833267,0.00017227,2]
[319229668,1710609038327,-2834.49202741,0.0001863,2]
[319230161,1710609043275,-6360.59345631,0.0001863,2]
[319230163,1710609043287,-8040.82277733,0.0001863,2]
[319230165,1710609043298,-22714.83893227,0.0001863,2]
[319230168,1710609043310,-687.38706087,0.0001863,2]
[319230170,1710609043322,-268.24199987,0.0001863,2]
[319230173,1710609043348,-1189.73765153,0.0001863,2]
[319230891,1710610232809,-155.01395126,0.00016284,2]
[319230892,1710610232819,-155.0341075,0.00016285,2]
[319230893,1710610232828,-300.0,0.00016946,2]
[319230894,1710610232837,-14236.4988296,0.00016947,2]
[319230895,1710610232846,-160.094173,0.00016958,2]
[319230896,1710610232856,-199.22721279,0.00017129,2]
[319230897,1710610232865,-310.90538466,0.00017698,2]
[319230898,1710610232875,-153.0,0.00017841,2]
[319230899,1710610232887,-153.0,0.00017978,2]
[319230900,1710610232897,-153.0,0.00017978,2]
[319230901,1710610232908,-153.0,0.00017978,2]
[319230902,1710610232918,-153.0,0.00017978,2]
[319230903,1710610232927,-153.0,0.00017978,2]
[319230904,1710610232937,-153.0,0.00017978,2]
[319230905,1710610232946,-135.08857884,0.00017978,2]
[319231127,1710610240530,-17.91142116,0.00017978,2]
[319231129,1710610240542,-153.0,0.00018178,2]
[319231130,1710610240551,-153.0,0.00018178,2]
[319231132,1710610240563,-201.1557499,0.00018178,2]
[319231134,1710610240573,-201.1557499,0.00018178,2]
[319231137,1710610240583,-153.0,0.00018178,2]
[319231138,1710610240592,-153.0,0.00018178,2]
[319231140,1710610240601,-201.1557499,0.00018178,2]
[319231142,1710610240610,-201.1557499,0.00018178,2]
[319231144,1710610240620,-153.0,0.00018178,2]
[319231146,1710610240630,-201.1557499,0.00018178,2]
[319231149,1710610240640,-154.2448027,0.00018252,2]
[319231151,1710610240650,-153.0,0.000186,2]
[319231153,1710610240659,-197.3408572,0.000186,2]
[319231154,1710610240669,-306.0,0.000186,2]
[319231156,1710610240678,-153.0,0.000186,2]
[319231159,1710610240688,-153.0,0.000186,2]
[319231160,1710610240699,-306.9174959,0.000186,2]
[319231162,1710610240708,-153.0,0.000186,2]
[319231164,1710610240717,-296.084614,0.000186,2]
[319231166,1710610240727,-386.3721122,0.000186,2]
[319231168,1710610240736,-153.0,0.000186,2]
[319231170,1710610240746,-153.0,0.000186,2]
[319231172,1710610240755,-153.0,0.000186,2]
[319231174,1710610240765,-153.0,0.000186,2]
[319231176,1710610240775,-153.0,0.000186,2]
[319231178,1710610240784,-153.0,0.000186,2]
[319231180,1710610240796,-153.0,0.000186,2]
[319231182,1710610240806,-201.1557499,0.000186,2]
[319231184,1710610240815,-153.0,0.000186,2]
[319231186,1710610240825,-153.0,0.000186,2]
[319231188,1710610240834,-153.0,0.000186,2]
[319231190,1710610240844,-201.1557499,0.000186,2]
[319231192,1710610240854,-153.0,0.000186,2]
[319231194,1710610240864,-153.0,0.000186,2]
[319231196,1710610240873,-153.0,0.000186,2]
[319231198,1710610240884,-153.0,0.000186,2]
[319231200,1710610240894,-153.0,0.000186,2]
[319231202,1710610240904,-153.0,0.000186,2]
[319231204,1710610240914,-153.0,0.000186,2]
[319231206,1710610240925,-153.0,0.000186,2]
[319231208,1710610240935,-153.0,0.000186,2]
[319231210,1710610240946,-153.0,0.000186,2]
[319231212,1710610240955,-441.0,0.000186,2]
[319231214,1710610240965,-500.0,0.00018627,2]
[319231216,1710610240976,-500.0,0.00018627,2]
[319231218,1710610240986,-535.86936706,0.00018627,2]
[319231221,1710610240995,-500.0,0.00018627,2]
[319231222,1710610241004,-500.0,0.00018627,2]
[319231224,1710610241016,-500.0,0.00018627,2]
[319231226,1710610241025,-500.0,0.00018627,2]
[319231228,1710610241034,-1651.16142157,0.00018627,2]
[319231231,1710610241049,-11005.54225085,0.00018627,2]
[319231233,1710610241058,-2599.63259754,0.00018628,2]
[319231235,1710610241067,-378.81657837,0.00018628,2]
[319231237,1710610241077,-155.03255684,0.00018628,2]
[319231239,1710610241086,-455.19155185,0.00018628,2]
[319231241,1710610241095,-1737.65913271,0.00018628,2]
[319231243,1710610241104,-381.78579349,0.00018628,2]
[319231244,1710610241113,-500.0,0.00018628,2]
[319231246,1710610241122,-1271.39057829,0.00018628,2]
[319231248,1710610241131,-190.09062584,0.00018629,2]
[319231250,1710610241140,-18050.03857946,0.00018629,2]
[319231253,1710610241152,-16558.6659547,0.00018629,2]
[319231255,1710610241161,-500.0,0.00018629,2]
[319231257,1710610241170,-500.0,0.00018629,2]
[319231258,1710610241179,-317.43548809,0.00018629,2]
[319231260,1710610241189,-360.3,0.00018629,2]
[319231262,1710610241198,-500.0,0.00018629,2]
[319231265,1710610241208,-500.0,0.00018629,2]
[319231267,1710610241218,-500.0,0.00018629,2]
[319231268,1710610241227,-500.0,0.00018629,2]
[319231271,1710610241237,-500.0,0.00018629,2]
[319231273,1710610241246,-21.05194564,0.00018629,2]
[319231517,1710610243673,-478.94805436,0.00018629,2]
[319231519,1710610243682,-500.0,0.00018629,2]
[319231521,1710610243691,-500.0,0.00018629,2]
[319231523,1710610243700,-500.0,0.00018629,2]
[319231524,1710610243709,-1528648.23359229,0.0001863,2]
[319231526,1710610243720,-2182.94569791,0.0001863,2]
[319233371,1710610369589,1000.0,0.00025,120]
[319233372,1710610376763,1000.0,0.00024,120]
[319233649,1710611433849,-971.98098773,0.00017978,2]
[319233651,1710611433858,-259.80317967,0.0001816,2]
[319233653,1710611433870,-712.17780806,0.0001816,2]
[319233655,1710611433879,-182.632306,0.00018248,2]
[319233657,1710611433888,-172.880331,0.00018248,2]
[319233659,1710611433897,-1755.13115523,0.0001853,2]
[319233661,1710611433905,-1000.0,0.0001853,2]
[319233662,1710611433914,-300.0,0.00018627,2]
[319233664,1710611433923,-301.81046434,0.00018628,2]
[319233666,1710611433932,-155.03255684,0.00018628,2]
[319233668,1710611433944,-155.13186208,0.00018628,2]
[319233669,1710611433954,-184.71260849,0.00018628,2]
[319233671,1710611433963,-940.20143814,0.00018629,2]
[319233672,1710611433972,-509.08617048,0.00018629,2]
[319233674,1710611433981,-500.0,0.00018629,2]
[319233676,1710611433990,-596.72,0.00018629,2]
[319233678,1710611433999,-500.0,0.00018629,2]
[319233679,1710611434009,-596.72,0.00018629,2]
[319233681,1710611434018,-500.0,0.00018629,2]
[319233683,1710611434027,-500.0,0.00018629,2]
[319233685,1710611434036,-500.0,0.00018629,2]
[319233686,1710611434045,-500.0,0.00018629,2]
[319233688,1710611434054,-500.0,0.00018629,2]
[319233690,1710611434063,-500.0,0.00018629,2]
[319233692,1710611434072,-193.44,0.00018629,2]
[319233694,1710611434081,-211.05888049,0.00018629,2]
[319233696,1710611434091,-411.01357952,0.00018629,2]
[319233698,1710611434099,-500.0,0.00018629,2]
[319233700,1710611434108,-500.0,0.00018629,2]
[319233701,1710611434117,-500.0,0.00018629,2]
[319233703,1710611434126,-500.0,0.00018629,2]
[319233705,1710611434136,-193.44,0.00018629,2]
[319233707,1710611434145,-500.0,0.00018629,2]
[319233709,1710611434154,-500.0,0.00018629,2]
[319233711,1710611434163,-500.0,0.00018629,2]
[319233712,1710611434173,-500.0,0.00018629,2]
[319233714,1710611434182,-500.0,0.00018629,2]
[319233716,1710611434196,-500.0,0.00018629,2]
[319233718,1710611434205,-500.0,0.00018629,2]
[319233720,1710611434219,-500.0,0.00018629,2]
[319233721,1710611434271,-193.44,0.00018629,2]
[319233723,1710611434280,-297193.49393131,0.0001863,2]
[319234114,1710611438758,-4551.10256208,0.0001863,2]
[319234115,1710611438771,-955.62817255,0.0001863,2]
[319234116,1710611438782,-4183.65550967,0.0001863,2]
[319234117,1710611438793,-2730.76346846,0.0001863,2]
[319234268,1710611440741,-42460.79334134,0.0001863,2]
[319234577,1710611443848,-1310.58554562,0.00018444,2]
[319234578,1710611443858,-4537.55006319,0.0001863,2]
[319234579,1710611443869,-8843.514107,0.0001863,2]
[319235017,1710612631843,-184.76844647,0.00017628,2]
[319235019,1710612631857,-172.5478384,0.00017629,2]
[319235021,1710612631867,-212.68371513,0.00017651,2]
[319235023,1710612631879,-958.93423397,0.00017651,2]
[319235026,1710612631889,-636.28804801,0.00018139,2]
[319235028,1710612631898,-51645.28051907,0.000186,2]
[319235385,1710612637978,-16985.68226478,0.000186,2]
[319235387,1710612637989,-13585.86048642,0.000186,2]
[319235388,1710612638001,-6606.92525158,0.000186,2]
[319235769,1710612641657,-268.0,0.000186,2]
[319236296,1710612647010,-6097.9982,0.000186,2]
[319236764,1710613832067,-1081.84484016,0.00018473,2]
[319236765,1710613832077,-1607.97410816,0.00018474,2]
[319236766,1710613832086,-322.24062299,0.00018499,2]
[319236768,1710613832096,-171.57733227,0.000185,2]
[319236770,1710613832105,-9439.24146057,0.00018599,2]
[319236772,1710613832117,-29759.69182841,0.00018599,2]
[319236774,1710613832127,-9650.57537901,0.000186,2]
[319236776,1710613832138,-23157.35875675,0.000186,2]
[319236858,1710613838060,-8528.13177507,0.000186,2]
[319236859,1710613838072,-9004.23486587,0.000186,2]
[319236860,1710613838084,-15000.0,0.000186,2]
[319236861,1710613838095,-5388.00054108,0.000186,2]
[319236862,1710613838118,-1372.01038602,0.000186,2]
[319237003,1710613841865,-12437.56350701,0.000186,2]
[319237007,1710613841897,-241.12010029,0.000186,2]
[319237133,1710613843259,-9910.0,0.000186,2]
[319237238,1710613846464,-6048.0008,0.000186,2]
[319237329,1710615032299,-159.74344553,0.0001859,2]
[319237332,1710615032309,-330.25655397,0.00018599,2]
[319237647,1710615038317,-1786.85267548,0.00018599,2]
[319237649,1710615038327,-275.0,0.00018599,2]
[319237651,1710615038336,-4269.43306901,0.000186,2]
[319237653,1710615038348,-1154.21844887,0.000186,2]
[319237773,1710615042672,-1410.0,0.000186,2]
[319237786,1710615042798,-1015.6979183,0.000186,2]
[319237946,1710615047708,-1331.23815871,0.000186,2]
[319237949,1710615047729,-359.7,0.000186,2]
[319238143,1710616232414,-268.050774,0.0001744,2]